bitfinex/quotes_ETHUSD_20240810
["timestamp","ask_amount","ask_price","bid_price","bid_amount"]
[1723282634840,1.128,2642.6,2642.3,0.07286133]
[1723282635039,1.128,2642.6,2642.5,0.07277611]
[1723282635233,1.128,2642.6,2642.4,0.07281872]
[1723282635432,1.128,2642.6,2642.5,0.07277611]
[1723282635837,1.128,2642.6,2642.2,2.4093]
[1723282636067,1.128,2642.6,2642.5,0.07277611]
[1723282636241,1.128,2642.6,2642.2,2.4093]
[1723282636440,1.128,2642.6,2642.5,0.07277611]
[1723282637077,1.8922,2642.5,2641.9,4.30186]
[1723282637249,1.128,2642.3,2642.0,1.89247]
[1723282637442,1.128,2642.5,2642.0,1.89247]
[1723282638245,1.128,2642.5,2642.0,3.260899]
[1723282638864,1.128,2642.5,2642.0,1.368429]
[1723282639572,1.128,2642.5,2642.1,2.4093]
[1723282639742,1.128,2642.5,2642.1,4.30168]
[1723282640664,1.128,2642.5,2642.1,2.4093]
[1723282640965,3.0,2642.9,2641.8,7.49]
[1723282640966,1.128,2642.3,2641.8,11.79189]
[1723282641162,1.128,2642.3,2641.9,1.89251]
[1723282641887,1.128,2642.3,2641.6,2.4093]
[1723282642072,2.3016,2642.6,2641.4,7.49]
[1723282642073,3.02063,2641.9,2641.4,1.89292]
[1723282642388,1.128,2641.9,2641.4,1.89292]
[1723282642583,1.128,2641.9,2641.5,2.323062]
[1723282642975,3.02045,2642.1,2641.5,2.323062]
[1723282643551,1.128,2642.1,2641.5,2.323042]
[1723282643751,1.128,2642.3,2641.8,1.8926]
[1723282645592,3.02012,2642.6,2641.9,4.18951]
[1723282645809,1.89212,2642.6,2641.9,4.18951]
[1723282646212,1.89212,2642.6,2641.9,4.61602147]
[1723282646368,1.89212,2642.6,2642.0,0.06791259]
[1723282646715,1.89209,2642.6,2642.0,1.96035259]
[1723282648081,1.89209,2642.6,2642.1,1.89243]
[1723282648385,4.29646,2642.8,2642.2,0.06782735]
[1723282648791,4.29646,2642.8,2642.2,1.96017735]
[1723282648987,4.4238836,2643.0,2642.3,4.36488]
[1723282649230,2.0187836,2643.0,2642.4,0.06774213]
[1723282649432,2.0187836,2643.0,2642.4,0.51331959]
[1723282649609,2.0187836,2643.0,2642.4,0.54186502]
[1723282649806,2.0187836,2643.0,2642.5,1.89214]
[1723282650007,2.0187836,2643.0,2642.6,0.06765692]
[1723282650534,0.1269636,2643.0,2642.6,0.06765692]
[1723282650715,0.1269636,2643.0,2642.6,0.30818936]
[1723282651447,2.0187636,2643.0,2642.6,0.30818936]
[1723282651646,1.89191,2642.9,2642.6,0.06765692]
[1723282651819,0.1269636,2643.0,2642.6,0.06765692]
[1723282652143,2.0187636,2643.0,2642.4,1.8922]
[1723282652342,2.0187636,2643.0,2642.7,0.06761432]
[1723282652516,2.0187636,2643.0,2642.3,4.36488]
[1723282652711,2.0187636,2643.0,2642.8,0.06757173]
[1723282652922,3.9106236,2643.0,2642.3,4.36484]
[1723282653129,1.89187,2642.9,2642.4,0.436484]
[1723282653529,2.0187636,2643.0,2642.4,0.436484]
[1723282653724,3.9106036,2643.0,2642.4,0.436484]
[1723282654059,2.0187636,2643.0,2642.4,0.436484]
[1723282654246,2.0187636,2643.0,2642.5,0.4801314]
[1723282654453,0.1269636,2643.0,2642.5,2.3722714]
[1723282654655,0.1269636,2643.0,2642.6,2.54441708]
[1723282654837,0.1269636,2643.0,2642.7,1.89194]
[1723282655050,0.1269636,2643.0,2642.6,2.54441708]
[1723282655357,0.1269636,2643.0,2642.6,4.43648708]
[1723282655514,0.1269636,2643.0,2642.7,0.63285771]
[1723282655719,0.1269636,2643.0,2642.6,2.4726]
[1723282656221,2.0187536,2643.0,2642.6,2.4726]
[1723282656613,2.0187536,2643.0,2642.4,2.4726]
[1723282657518,2.0187536,2643.0,2642.6,2.4726]
[1723282657519,0.1269636,2643.0,2642.6,2.4726]
[1723282657769,0.1269636,2643.0,2642.7,0.436468]
[1723282657963,0.1269636,2643.0,2642.7,2.328408]
[1723282658123,0.1269636,2643.0,2642.7,2.40407712]
[1723282658966,0.1269636,2643.0,2642.7,0.436468]
[1723282659132,0.1269636,2643.0,2642.5,1.89211]
[1723282660753,4.4239036,2643.0,2642.4,4.36479]
[1723282660960,0.1269636,2643.0,2642.4,4.36479]
[1723282661272,0.1269636,2643.0,2642.5,0.625704]
[1723282661429,0.1269636,2643.0,2642.5,0.69306091]
[1723282661625,0.1269636,2643.0,2642.5,2.58513091]
[1723282661844,0.1269636,2643.0,2642.7,2.4726]
[1723282662053,0.1269636,2643.0,2642.8,0.02045738]
[1723282662261,0.1269636,2643.0,2642.8,1.97952843]
[1723282662429,0.1269636,2643.0,2642.9,1.89186]
[1723282662624,0.1269636,2643.0,2642.9,1.95900845]
[1723282662858,0.1269636,2643.0,2642.9,2.59893203]
[1723282663062,0.1269636,2643.0,2642.9,6.96339203]
[1723282663370,0.1269636,2643.0,2642.9,6.32346845]
[1723282663575,0.1269636,2643.0,2642.9,6.87346845]
[1723282664741,0.1269636,2643.0,2642.9,8.76532845]
[1723282664955,0.1269636,2643.0,2642.9,11.76532845]
[1723282665156,0.1269636,2643.0,2642.9,12.9418613]
[1723282665559,0.1269636,2643.0,2642.9,11.0500013]
[1723282667675,0.1269636,2643.0,2642.9,8.6081413]
[1723282668978,0.1269636,2643.0,2642.9,10.5000013]
[1723282669168,0.1269636,2643.0,2642.9,11.0500013]
[1723282669773,0.1269636,2643.0,2642.9,12.9418613]
[1723282670181,0.1269636,2643.0,2642.9,11.0500013]
[1723282671618,0.1269636,2643.0,2642.9,12.9418613]
[1723282671951,0.1269636,2643.0,2642.9,11.0500013]
[1723282676556,3.6e-06,2643.0,2642.9,17.5397213]
[1723282676762,3.6e-06,2643.0,2642.9,15.6478613]
[1723282676959,3.6e-06,2643.0,2642.9,12.9418613]
[1723282677363,3.6e-06,2643.0,2642.9,15.6478613]
[1723282678260,1.89071,2644.5,2643.8,1.89114]
[1723282678261,2.4102,2644.5,2643.8,1.89114]
[1723282678444,2.4102,2644.5,2643.9,0.06550502]
[1723282678648,2.4102,2644.5,2643.8,1.89114]
[1723282678875,4.30091,2644.5,2643.9,0.06537825]
[1723282679092,0.430086,2644.4,2643.9,0.06537825]
[1723282679295,4.30106,2644.3,2643.9,0.06537825]
[1723282679596,1.89093,2644.2,2643.9,0.06537825]
[1723282679769,2.4102,2644.1,2643.6,1.8913]
[1723282679969,2.4102,2644.1,2644.0,0.06533569]
[1723282680169,2.4102,2644.1,2643.6,1.8913]
[1723282680397,2.4102,2644.1,2644.0,0.06532301]
[1723282680603,2.4102,2644.1,2643.6,2.569577]
[1723282680800,2.4102,2644.1,2644.0,0.06534203]
[1723282681000,2.4102,2644.1,2643.6,1.8913]
[1723282681169,2.4102,2644.1,2644.0,0.06532935]
[1723282681369,2.4102,2644.1,2643.6,1.8913]
[1723282681570,1.89107,2644.0,2643.4,1.89147]
[1723282681974,1.89107,2644.0,2643.5,0.06557387]
[1723282682929,4.30156,2643.6,2643.5,0.06557387]
[1723282683095,1.89155,2643.4,2642.8,1.89193]
[1723282683429,1.89155,2643.4,2642.5,1.89208]
[1723282683577,2.4185,2643.2,2642.9,0.05919885]
[1723282683771,1.89174,2643.1,2642.5,1.89208]
[1723282684080,1.89174,2643.1,2642.4,1.89221]
[1723282684283,1.89174,2643.1,2642.6,0.05932664]
[1723282684472,0.620187,2643.1,2642.5,1.95146924]
[1723282684681,0.620187,2643.1,2642.6,1.89207]
[1723282685075,0.620187,2643.1,2642.3,7.49]
[1723282685076,2.4185,2643.2,2642.8,1.89191]
[1723282685390,2.4185,2643.2,2642.7,3.84318404]
[1723282685599,2.4185,2643.2,2642.9,0.05919885]
[1723282685793,2.4185,2643.2,2642.8,0.05924144]
[1723282686004,2.4185,2643.2,2643.0,0.05915626]
[1723282686284,2.4185,2643.2,2643.1,0.05911367]
[1723282686498,2.4185,2643.2,2642.7,1.89193]
[1723282686707,2.4185,2643.2,2643.1,0.05911367]
[1723282686911,2.91843966,2643.2,2642.7,1.89195]
[1723282687103,2.91843966,2643.2,2643.1,0.05911367]
[1723282687302,2.91843966,2643.2,2642.7,1.89195]
[1723282687929,2.91843966,2643.2,2642.8,0.05924144]
[1723282688123,2.91843966,2643.2,2642.7,3.78389]
[1723282688320,2.4185,2643.2,2642.9,1.95103885]
[1723282688523,2.4185,2643.5,2643.0,1.89174]
[1723282688821,4.30983,2643.7,2643.1,1.89167]
[1723282689020,4.30983,2643.7,2643.2,0.05907109]
[1723282689021,2.4185,2643.7,2643.2,0.05907109]
[1723282689399,2.4185,2643.7,2643.3,1.89157]
[1723282689721,4.30954,2644.1,2643.5,1.89137]
[1723282690143,4.30954,2644.1,2643.6,0.05890079]
[1723282690724,2.4185,2644.1,2643.6,0.05890079]
[1723282691228,2.4185,2644.4,2643.6,0.30836095]
[1723282691537,1.89114,2643.9,2643.6,0.05890079]
[1723282691733,2.4185,2643.8,2643.6,0.05890079]
[1723282692026,2.4185,2643.8,2643.3,1.89157]
[1723282692610,2.4185,2643.8,2643.4,0.05890997]
[1723282693140,2.4185,2643.8,2643.5,1.89142]
[1723282693310,2.4185,2643.8,2643.5,0.05892436]
[1723282693517,2.4185,2643.8,2643.5,1.95030436]
[1723282693691,2.4185,2644.1,2643.6,1.8913]
[1723282694036,2.4185,2644.1,2643.8,1.89121]
[1723282694311,2.4185,2644.1,2643.9,0.0587351]
[1723282694460,2.4185,2644.1,2643.9,1.9498751]
[1723282694660,2.4185,2644.1,2643.9,0.0587351]
[1723282694873,2.4185,2644.1,2643.9,1.9498651]
[1723282695061,2.4185,2644.1,2643.9,0.0587351]
[1723282695478,2.66035,2644.1,2643.9,0.0587351]
[1723282695682,2.66035,2644.1,2643.6,1.89134]
[1723282695891,2.4185,2644.1,2643.7,0.05882023]
[1723282696179,2.4185,2644.6,2644.2,1.89086]
[1723282696579,2.4185,2644.6,2644.3,0.05856489]
[1723282696780,3.12,2644.6,2644.3,1.94941489]
[1723282696968,3.12,2644.6,2644.2,1.89086]
[1723282696969,2.4185,2644.6,2644.2,1.89086]
[1723282697174,2.4185,2644.6,2644.4,1.94930234]
[1723282697387,2.4185,2644.6,2644.4,1.89078]
[1723282697570,2.4185,2644.6,2644.5,0.0584798]
[1723282697770,2.4185,2645.0,2644.5,0.0584798]
[1723282698085,5.1245,2644.8,2644.5,0.0584798]
[1723282698391,1.89062,2644.7,2643.7,1.89125]
[1723282698698,4.30948,2644.2,2643.8,0.05877766]
[1723282698996,4.30948,2644.2,2643.3,1.89152]
[1723282698997,1.89114,2644.0,2643.3,1.89152]
[1723282699190,6.820841,2644.0,2643.9,0.0587351]
[1723282699380,6.820841,2644.0,2642.9,1.89181]
[1723282699381,4.30966,2643.9,2642.9,1.89181]
[1723282699564,4.30966,2643.9,2643.1,1.89165]
[1723282699565,1.89134,2643.7,2643.1,1.89165]
[1723282699784,0.5479721,2643.8,2643.1,1.89165]
[1723282699985,0.5479721,2643.8,2643.3,1.89155]
[1723282700294,1.89136,2643.6,2643.4,0.05650053]
[1723282700603,2.37711321,2643.7,2643.4,0.05650053]
[1723282700900,4.30966,2643.9,2643.1,1.89167]
[1723282701082,6.20087,2643.9,2643.2,1.89163]
[1723282701295,2.5733231,2643.8,2643.3,0.05654311]
[1723282701465,2.5733231,2643.8,2643.1,1.89164]
[1723282701466,2.5733131,2643.8,2643.1,1.89164]
[1723282701665,0.68829831,2643.7,2643.2,0.05658569]
[1723282702286,0.68829831,2643.7,2643.2,1.94822569]
[1723282702905,0.68829831,2643.7,2643.2,0.05658569]
[1723282703288,0.68829831,2643.7,2643.3,1.89156]
[1723282703601,0.68829831,2643.7,2643.4,0.05650053]
[1723282704168,4.30968,2643.9,2643.4,0.05650053]
[1723282705194,2.4185,2643.9,2643.5,1.89141]
[1723282705366,2.4185,2643.9,2643.4,0.05650053]
[1723282705367,2.4185,2643.9,2643.4,1.94800053]
[1723282705566,2.9114601,2643.9,2643.6,0.05660532]
[1723282705767,2.9114601,2643.9,2643.4,1.8915]
[1723282706403,2.9114601,2643.9,2643.5,0.05664789]
[1723282706910,0.4929601,2643.9,2643.6,1.89135]
[1723282707065,2.2583,2644.2,2644.0,1.89102]
[1723282707269,2.2583,2644.2,2643.8,1.89115]
[1723282707496,2.2583,2644.2,2644.1,0.05639252]
[1723282707691,2.48413,2644.2,2643.8,1.89115]
[1723282708000,2.2583,2644.2,2643.9,0.05647763]
[1723282708570,8.74644,2644.0,2643.9,0.05647763]
[1723282708803,1.89124,2643.8,2643.2,1.89164]
[1723282709263,4.14959,2643.7,2643.3,0.05673305]
[1723282709466,4.14959,2643.7,2643.0,1.89173]
[1723282709696,1.89144,2643.5,2643.1,0.05681821]
[1723282709998,2.495463,2643.6,2643.1,0.05681821]
[1723282710499,2.495463,2643.6,2642.9,1.8918]
[1723282710700,1.89143,2643.5,2643.0,0.0568608]
[1723282710898,2.5559893,2643.5,2643.0,0.0568608]
[1723282711101,1.89176,2643.1,2642.0,2.3428]
[1723282711281,1.89185,2643.0,2642.3,1.89223]
[1723282711478,2.2583,2642.9,2642.4,0.05711639]
[1723282711882,2.2583,2642.9,2642.1,1.8924]
[1723282712079,2.2583,2642.9,2642.3,1.89223]
[1723282712598,2.2583,2642.9,2642.5,1.89213]
[1723282713098,2.2583,2642.9,2642.6,0.05703118]
[1723282715799,4.14995,2643.2,2642.6,1.94910118]
[1723282715995,5.024698,2643.2,2642.6,1.94910118]
[1723282716308,2.2583,2643.2,2642.6,0.05703118]
[1723282716503,4.15,2643.2,2642.6,0.05703118]
[1723282716879,4.15,2643.2,2642.6,1.94910118]
[1723282717098,2.2583,2643.5,2642.7,1.89196]
[1723282717404,2.2583,2643.5,2642.8,0.0577819]
[1723282717623,1.89169,2643.2,2642.8,0.0577819]
[1723282717906,1.89169,2643.2,2642.3,9.38223]
[1723282718110,1.89183,2643.0,2642.4,0.05795864]
[1723282718274,1.89183,2643.0,2642.4,1.95012864]
[1723282719094,1.89183,2643.0,2642.4,0.05795864]
[1723282720012,4.15008,2643.1,2642.5,1.89214]
[1723282720201,1.8918,2643.0,2642.4,0.05795864]
[1723282720388,1.8918,2643.0,2642.6,0.05787343]
[1723282720585,1.8918,2643.0,2642.5,0.05791604]
[1723282720777,1.8918,2643.0,2642.7,0.05783083]
[1723282720980,1.8918,2643.0,2642.6,0.05787343]
[1723282721181,1.8918,2643.0,2642.8,0.05778824]
[1723282721418,2.2583,2643.1,2642.8,0.05778824]
[1723282721779,1.89187,2642.9,2642.3,1.89222]
[1723282722084,1.89193,2642.8,2642.4,0.05795864]
[1723282722281,1.89193,2642.8,2642.2,2.31583]
[1723282722509,1.89193,2642.8,2642.3,0.77882225]
[1723282722914,1.89193,2642.8,2642.3,0.05800125]
[1723282722915,1.89196,2642.8,2642.3,0.05800125]
[1723282723111,1.89212,2642.6,2641.9,3.78507]
[1723282723415,1.89212,2642.6,2642.0,0.0581291]
[1723282723795,4.22542,2642.6,2642.0,0.0581291]
[1723282723991,4.22511,2643.0,2642.1,2.443]
[1723282724250,4.22511,2643.0,2642.3,1.89222]
[1723282724428,1.89198,2642.8,2642.2,0.05804387]
[1723282724626,1.89198,2642.8,2642.4,0.05795864]
[1723282724793,1.89198,2642.8,2642.3,0.05800125]
[1723282725111,1.89202,2642.7,2642.4,0.05795864]
[1723282725294,4.22512,2643.0,2642.0,0.94406491]
[1723282725494,4.22512,2643.0,2642.3,1.89228]
[1723282725696,4.22512,2643.0,2642.4,0.05795864]
[1723282725921,6.11697,2643.0,2642.4,0.05795864]
[1723282726085,4.22512,2643.0,2642.4,2.1451825]
[1723282726285,1.89152,2643.4,2642.7,1.89199]
[1723282726503,1.89152,2643.4,2642.8,0.05778824]
[1723282726691,1.89181,2643.0,2642.8,0.05778824]
[1723282726892,1.89181,2643.0,2642.4,2.08723386]
[1723282727129,3.78366,2643.0,2642.5,0.26678513]
[1723282727413,1.89181,2643.0,2642.5,0.26678513]
[1723282727916,1.89167,2643.2,2642.5,0.26678513]
[1723282728121,1.89167,2643.2,2642.5,0.05806174]
[1723282728816,1.89167,2643.2,2642.5,1.95015174]
[1723282729016,3.78338,2643.2,2642.5,1.95015174]
[1723282729227,1.892,2642.7,2642.5,0.05806174]
[1723282729419,0.42253,2642.6,2642.5,0.05806174]
[1723282729627,1.892,2642.7,2642.0,1.89248]
[1723282729788,1.892,2642.7,2642.5,0.05806174]
[1723282729992,1.89207,2642.6,2642.0,1.89248]
[1723282730342,1.89207,2642.6,2642.0,3.56429]
[1723282732225,1.89215,2642.5,2642.0,1.67181]
[1723282732432,1.89207,2642.6,2642.0,1.67181]
[1723282733117,1.89207,2642.6,2642.0,3.56431]
[1723282733323,1.89207,2642.6,2642.0,1.67181]
[1723282733829,1.89207,2642.6,2641.8,6.2282]
[1723282733830,1.89215,2642.5,2641.8,6.2282]
[1723282733996,1.89215,2642.5,2641.9,1.89257]
[1723282734196,1.89215,2642.5,2641.8,4.33558]
[1723282734398,1.89207,2642.6,2641.9,1.89251]
[1723282735096,3.78421,2642.6,2641.9,1.89251]
[1723282735292,1.89207,2642.6,2641.9,1.89251]
[1723282735530,1.89207,2642.6,2642.0,0.622809]
[1723282735896,1.89207,2642.6,2641.8,4.33558]
[1723282736097,1.89226,2642.4,2641.8,1.89258]
[1723282736339,1.89226,2642.4,2641.7,1.89271]
[1723282736502,4.22556,2642.4,2641.8,0.05638312]
[1723282736994,1.89234,2642.3,2641.8,0.05638312]
[1723282737404,1.89234,2642.3,2641.7,0.733576]
[1723282737730,1.89234,2642.3,2641.6,1.89273]
[1723282737731,1.89241,2642.2,2641.8,0.05638312]
[1723282737930,1.89241,2642.2,2641.4,1.89292]
[1723282738098,1.89241,2642.2,2641.5,0.05672616]
[1723282738621,1.89255,2642.0,2641.5,0.05672616]
[1723282739330,1.89238,2642.2,2641.3,1.893]
[1723282739531,1.89238,2642.2,2641.4,0.05705997]
[1723282739722,1.89238,2642.2,2641.6,1.89278]
[1723282739924,1.89238,2642.2,2641.7,0.0569384]
[1723282740431,1.89243,2642.1,2641.7,0.0569384]
[1723282740607,1.89263,2641.9,2641.7,0.0569384]
[1723282740812,1.89265,2641.8,2641.2,4.33603]
[1723282741236,1.89263,2641.9,2641.3,1.893]
[1723282741438,2.3333,2642.0,2641.3,1.893]
[1723282741439,2.3333,2642.0,2641.3,2.515911]
[1723282741636,2.3333,2642.0,2641.3,1.893]
[1723282742139,1.89262,2641.9,2641.3,1.893]
[1723282742355,1.89262,2641.9,2641.2,2.443]
[1723282743027,2.3333,2642.0,2641.3,1.89295]
[1723282743229,2.3333,2642.0,2641.5,1.89281]
[1723282743762,24.07581929,2644.8,2641.9,1.89254]
[1723282743763,4.38393,2642.8,2641.9,1.89254]
[1723282743902,2.492,2642.8,2641.9,1.89254]
[1723282744106,2.492,2642.8,2642.1,1.89238]
[1723282744302,4.822318,2642.8,2642.1,1.89238]
[1723282744537,4.822318,2642.8,2642.2,1.89234]
[1723282744740,2.930388,2642.8,2642.3,1.89228]
[1723282745032,2.492,2643.1,2642.4,1.89216]
[1723282745235,2.492,2643.1,2642.6,1.89206]
[1723282745421,2.492,2643.1,2642.4,1.89216]
[1723282745623,4.38371,2643.1,2642.4,1.89216]
[1723282746025,1.89179,2643.0,2642.4,1.89216]
[1723282746208,4.38371,2643.1,2642.4,1.89216]
[1723282746535,4.95493086,2643.1,2642.4,1.89216]
[1723282746941,4.95499086,2643.1,2642.4,1.89216]
[1723282747143,4.38359,2643.3,2642.6,1.89204]
[1723282747348,3.0,2643.2,2642.6,1.89204]
[1723282747851,4.38359,2643.3,2642.6,1.89204]
[1723282748010,5.011095,2643.3,2642.6,1.89204]
[1723282748337,4.38359,2643.3,2642.6,1.89204]
[1723282748764,1.89143,2643.5,2642.8,1.89187]
[1723282749950,1.8915,2643.4,2642.8,1.89187]
[1723282750858,1.89163,2643.3,2642.6,1.89207]
[1723282751353,1.89163,2643.3,2642.7,1.892]
[1723282751657,2.269939,2643.3,2642.8,0.05477943]
[1723282751811,1.89165,2643.2,2642.8,0.05477943]
[1723282752012,2.492,2643.1,2642.4,1.89218]
[1723282752217,1.89176,2643.1,2642.9,0.05473683]
[1723282752518,1.89176,2643.1,2643.0,0.05469424]
[1723282752855,1.89172,2643.1,2642.4,1.89217]
[1723282753059,2.3078859,2643.1,2643.0,0.05469424]
[1723282753213,1.89163,2643.3,2642.6,1.89203]
[1723282753418,2.492,2643.4,2642.7,1.89195]
[1723282753653,2.492,2643.4,2642.7,4.42067202]
[1723282753857,2.492,2643.4,2642.9,1.89185]
[1723282754160,1.89146,2643.5,2643.0,0.05469424]
[1723282754460,6.27465,2643.7,2643.1,1.89171]
[1723282754751,6.27465,2643.7,2643.2,0.05437495]
[1723282754752,3.489131,2643.6,2643.2,0.05437495]
[1723282754958,5.380531,2643.6,2642.9,1.8918]
[1723282755138,1.89143,2643.5,2643.3,0.05368681]
[1723282755344,1.89143,2643.5,2642.9,1.8918]
[1723282755345,0.5380561,2643.4,2642.7,2.4739]
[1723282755646,0.5380561,2643.4,2642.5,1.89212]
[1723282755647,4.3837,2643.2,2642.8,0.05389975]
[1723282756014,1.89172,2643.1,2642.4,4.3661]
[1723282756312,1.89172,2643.1,2642.5,1.89209]
[1723282756514,1.89172,2643.1,2642.6,0.05383944]
[1723282757352,1.89172,2643.1,2642.6,1.89206]
[1723282757575,2.492,2643.2,2642.7,0.05379684]
[1723282758061,1.89171,2643.1,2642.7,0.05379684]
[1723282758413,1.89171,2643.1,2642.4,4.36604]
[1723282758611,1.89186,2642.9,2642.8,0.05375425]
[1723282758848,1.89186,2642.9,2642.4,4.36604]
[1723282759148,1.89171,2643.1,2642.4,5.740876]
[1723282759330,1.89171,2643.1,2642.5,1.94601205]
[1723282759517,3.78348,2643.1,2642.5,1.94601205]
[1723282759915,1.89171,2643.1,2642.5,1.94601205]
[1723282760253,1.8918,2643.0,2642.5,1.94601205]
[1723282760945,4.38369,2643.2,2642.5,1.94597205]
[1723282761153,4.38369,2643.2,2642.5,2.38796326]
[1723282761352,4.38369,2643.2,2642.6,1.89206]
[1723282761536,2.492,2643.2,2642.7,0.05379684]
[1723282761877,1.89161,2643.3,2642.7,1.94574684]
[1723282762047,6.27494,2643.5,2642.9,1.89184]
[1723282762219,4.38346,2643.5,2642.9,1.89184]
[1723282762420,5.121806,2643.5,2643.0,0.05366906]
[1723282762620,1.89152,2643.4,2643.0,0.05366906]
[1723282763047,1.89152,2643.4,2642.8,1.89192]
[1723282763240,1.89152,2643.4,2643.1,0.05362647]
[1723282763424,2.7037066,2643.4,2642.8,1.89192]
[1723282763625,2.7037066,2643.4,2643.2,0.05358389]
[1723282763835,2.7037066,2643.4,2642.8,1.89192]
[1723282764046,2.7037066,2643.4,2643.3,0.05354131]
[1723282764252,2.7037066,2643.4,2642.8,1.89192]
[1723282764559,2.492,2643.5,2642.9,1.89184]
[1723282764719,2.492,2643.5,2643.0,0.05366906]
[1723282765358,4.38343,2643.5,2643.0,0.05366906]
[1723282765530,1.89152,2643.4,2643.0,0.05366906]
[1723282765745,2.492,2643.5,2642.9,1.89184]
[1723282765944,1.8915,2643.4,2643.0,0.05366906]
[1723282766874,3.419478,2643.5,2643.0,0.05366906]
[1723282767223,0.927478,2643.5,2643.0,0.05366906]
[1723282767431,4.89137,2643.6,2643.0,0.05366906]
[1723282767671,3.78278,2643.6,2643.0,0.05366906]
[1723282767872,1.89137,2643.6,2643.0,0.05366906]
[1723282768170,1.89137,2643.6,2643.0,1.94544906]
[1723282769049,3.78279,2643.6,2643.0,1.94544906]
[1723282769228,1.89144,2643.5,2643.0,1.94544906]
[1723282769492,2.808599,2643.6,2643.0,1.94544906]
[1723282770134,4.700009,2643.6,2643.0,1.94544906]
[1723282770292,1.89143,2643.5,2643.0,1.94544906]
[1723282770628,1.89143,2643.5,2643.0,0.05366906]
[1723282770993,4.700009,2643.6,2642.9,1.89183]
[1723282771192,1.89151,2643.4,2643.1,0.05355687]
[1723282771422,1.89151,2643.4,2643.0,0.05359946]
[1723282771628,1.89151,2643.4,2643.2,0.05351429]
[1723282771931,2.3615209,2643.4,2643.3,0.05347171]
[1723282772631,2.3615209,2643.4,2642.9,1.89185]
[1723282772797,2.3615209,2643.4,2643.3,0.05347171]
[1723282773103,0.4700109,2643.4,2643.3,0.05347171]
[1723282773318,0.4700109,2643.4,2642.9,3.78366]
[1723282773523,1.89144,2643.5,2643.0,0.05359946]
[1723282773915,2.808599,2643.6,2643.0,0.05359946]
[1723282774119,4.700009,2643.6,2643.0,0.05359946]
[1723282774315,1.89143,2643.5,2643.0,0.05359946]
[1723282774547,2.6614329,2643.5,2643.0,0.05359946]
[1723282774855,0.7700029,2643.5,2643.0,0.05359946]
[1723282775012,0.7700029,2643.5,2643.0,1.94531946]
[1723282775209,1.89137,2643.6,2643.0,1.94531946]
[1723282775621,1.89137,2643.6,2643.1,1.89171]
[1723282776140,1.89137,2643.6,2643.2,0.05351429]
[1723282776639,4.28075,2643.8,2643.2,2.53011429]
[1723282776807,6.17202,2643.8,2643.2,2.53011429]
[1723282777011,4.28075,2643.8,2643.2,2.53011429]
[1723282777509,1.89134,2643.7,2643.2,2.53011429]
[1723282777711,1.89136,2643.6,2643.2,2.53011429]
[1723282779409,1.89154,2643.4,2643.2,0.05351429]
[1723282779805,1.89154,2643.4,2642.8,4.36852]
[1723282780006,1.89154,2643.4,2642.8,4.36849]
[1723282780237,1.89154,2643.4,2642.9,1.94532127]
[1723282780409,1.89154,2643.4,2642.9,0.05347127]
[1723282780410,1.8916,2643.3,2642.9,0.05347127]
[1723282780827,1.89154,2643.4,2642.9,0.05347127]
[1723282781442,1.89158,2643.3,2642.9,0.05347127]
[1723282782157,1.8915,2643.4,2642.9,0.05347127]
[1723282782333,1.89158,2643.3,2642.9,0.05347127]
[1723282782743,2.1423401,2643.5,2642.9,0.05347127]
[1723282783363,2.1423401,2643.5,2642.9,1.94533127]
[1723282783548,2.1423401,2643.5,2642.9,0.05347127]
[1723282783728,1.89152,2643.4,2642.9,0.05347127]
[1723282783929,3.78307,2643.4,2642.9,0.05347127]
[1723282784131,1.89158,2643.3,2642.9,0.05347127]
[1723282784631,3.78308,2643.4,2642.9,0.05347127]
[1723282784826,1.89152,2643.4,2642.9,0.05347127]
[1723282785568,3.78307,2643.4,2642.9,0.05347127]
[1723282785928,1.89165,2643.2,2642.9,0.05347127]
[1723282787448,3.78309,2643.4,2642.9,0.05347127]
[1723282787643,1.89159,2643.3,2642.9,0.05347127]
[1723282788061,2.3643,2643.4,2642.9,0.05347127]
[1723282788269,1.89178,2643.0,2642.9,0.05347127]
[1723282788473,1.8919,2642.9,2642.4,5.2816]
[1723282788874,1.8919,2642.9,2642.4,2.2816]
[1723282789386,1.89178,2643.0,2642.5,1.89212]
[1723282789691,1.89178,2643.0,2642.5,2.309492]
[1723282791076,1.89172,2643.1,2642.5,2.309492]
[1723282792190,1.89179,2643.0,2642.5,2.309492]
[1723282792493,1.89179,2643.0,2642.5,1.89212]
[1723282793667,1.89167,2643.2,2642.6,1.89206]
[1723282793871,3.78336,2643.2,2642.6,1.89206]
[1723282794267,1.89167,2643.2,2642.6,1.89206]
[1723282794873,3.78336,2643.2,2642.6,1.89206]
[1723282795189,1.89167,2643.2,2642.6,1.89206]
[1723282795588,3.78337,2643.2,2642.6,1.89206]
[1723282796497,3.78337,2643.2,2642.7,0.05394867]
[1723282796649,2.506437,2643.2,2642.7,0.05394867]
[1723282796983,4.398137,2643.2,2642.7,0.05394867]
[1723282797479,1.89173,2643.1,2642.7,0.05394867]
[1723282797684,1.8919,2642.9,2642.7,0.05394867]
[1723282797981,0.18919,2642.8,2642.4,2.2816]
[1723282798182,0.18919,2642.8,2642.2,9.3823]
[1723282798183,1.8919,2642.9,2642.2,9.3823]
[1723282798902,1.8919,2642.9,2642.2,1.8923]
[1723282799061,1.892,2642.7,2642.2,1.8923]
[1723282799544,3.7838,2642.9,2642.2,1.89235]
[1723282799693,2.5067,2642.9,2642.2,1.89235]
[1723282799989,2.5067,2642.9,2642.3,1.89228]
[1723282800686,2.5067,2642.9,2642.3,1.89223]
[1723282800893,1.89175,2643.1,2642.4,1.8922]
[1723282801050,1.89183,2643.0,2642.5,2.2816]
[1723282801256,1.89183,2643.0,2642.5,4.17373]
[1723282801459,1.89117,2643.9,2642.5,4.17373]
[1723282801460,4.25586,2643.4,2642.7,1.89195]
[1723282801767,3.7832,2643.3,2642.7,2.498516]